bitfinex-derivatives/quotes_SOLF0:USTF0_20251122
["timestamp","ask_amount","ask_price","bid_price","bid_amount"]
[1763840641197,0.05363287,126.92,126.91,3.16]
[1763840648510,0.05363287,126.92,126.89,3.09640254]
[1763840649912,7.14933287,126.92,126.89,3.09640254]
[1763840653111,7.0962,126.91,126.89,3.09640254]
[1763840656822,0.05363287,126.92,126.89,3.09640254]
[1763840658225,7.14933287,126.92,126.89,3.09640254]
[1763840658915,7.0962,126.91,126.89,3.09640254]
[1763840661225,1.71007849,126.92,126.89,3.09640254]
[1763840661626,0.05363287,126.92,126.89,3.09640254]
[1763840664024,0.05363287,126.92,126.89,12.92027216]
[1763840664326,0.05363287,126.92,126.9,3.04]
[1763840667137,0.05363287,126.92,126.9,12.86386962]
[1763840667636,0.05363287,126.92,126.91,3.04]
[1763840668635,0.05363287,126.92,126.91,12.86386962]
[1763840669538,0.05363287,126.92,126.91,3.04]
[1763840670142,0.05363287,126.92,126.91,12.86386962]
[1763840671632,0.05363287,126.92,126.9,12.86386962]
[1763840671633,1.71007849,126.92,126.9,12.86386962]
[1763840671832,1.71007849,126.92,126.9,3.04]
[1763840672335,0.05363287,126.92,126.91,3.04]
[1763840675639,7.14933287,126.92,126.9,12.86386962]
[1763840675837,7.14933287,126.92,126.9,3.04]
[1763840682043,7.14933287,126.92,126.89,13.12027216]
[1763840682242,7.0963,126.91,126.89,3.29640254]
[1763840685445,0.05363287,126.92,126.89,3.29640254]
[1763840685651,0.05363287,126.92,126.9,3.24]
[1763840686049,0.05363287,126.92,126.91,3.24]
[1763840693152,0.05363287,126.92,126.91,13.06386962]
[1763840693757,23.5744,126.95,126.91,13.06386962]
[1763840694059,23.5744,126.95,126.93,3.24]
[1763840694854,23.62442352,126.95,126.93,3.29961604]
[1763840701052,23.62442352,126.95,126.93,0.05961604]
[1763840703062,23.62442352,126.95,126.93,3.29961604]
[1763840705673,16.53002352,126.95,126.93,3.29961604]
[1763840706372,0.05002352,126.95,126.93,3.29961604]
[1763840706672,7.0921,126.99,126.94,3.02]
[1763840707564,0.05010752,126.98,126.94,3.02]
[1763840709164,7.0929,126.97,126.94,3.02]
[1763840712074,7.0929,126.97,126.93,12.90348566]
[1763840712269,7.0929,126.97,126.94,3.02]
[1763840717175,2.58760685,126.96,126.93,0.05961604]
[1763840717376,19.06760685,126.96,126.93,0.05961604]
[1763840718075,7.0942,126.95,126.93,0.05961604]
[1763840718270,7.15451444,126.95,126.93,0.05961604]
[1763840720184,0.06031444,126.95,126.93,3.07961604]
[1763840725086,0.06031444,126.95,126.94,3.02]
[1763840725289,23.5722,126.99,126.95,3.02]
[1763840726387,0.03997887,126.98,126.96,3.07515164]
[1763840730595,0.03997887,126.98,126.97,3.02]
[1763840734585,0.03997887,126.98,126.96,3.07515164]
[1763840734902,7.13237887,126.98,126.96,3.07515164]
[1763840735987,0.03997887,126.98,126.96,3.07515164]
[1763840738697,7.0898,127.03,126.98,3.23]
[1763840739098,16.46,127.05,126.98,3.23]
[1763840739598,16.46,127.05,127.0,3.28764454]
[1763840741395,7.0895,127.03,127.0,3.28764454]
[1763840743802,7.0902,127.02,127.0,3.28764454]
[1763840746702,9.67780685,127.02,127.0,0.05764454]
[1763840747006,16.46,127.01,127.0,0.05764454]
[1763840749596,112.89690685,127.0,126.96,3.23]
[1763840750511,0.05764454,126.99,126.97,0.05739309]
[1763840751207,0.05764454,126.99,126.97,3.28739309]
[1763840756711,0.05764454,126.99,126.98,3.23]
[1763840760912,0.05764454,126.99,126.97,0.05739309]
[1763840760913,0.05764454,126.99,126.97,3.28739309]
[1763840762113,7.14944454,126.99,126.97,3.28739309]
[1763840764304,7.0939,126.95,126.94,13.05386962]
[1763840764503,7.0939,126.95,126.93,3.23]
[1763840765517,7.15123353,126.95,126.93,0.04998011]
[1763840767217,1.65419018,126.94,126.93,0.04998011]
[1763840767617,110.3699,126.93,126.88,12.87386962]
[1763840767819,1.65419018,126.92,126.88,3.05]
[1763840768720,0.05394409,126.91,126.89,0.05713551]
[1763840769218,7.15014409,126.91,126.89,0.05713551]
[1763840770514,18.11419018,126.9,126.89,0.05713551]
[1763840770719,110.4048,126.89,126.84,12.87386962]
[1763840770906,1.65419018,126.87,126.84,3.05]
[1763840771717,1.71323173,126.87,126.84,3.10644551]
[1763840772024,0.05904155,126.87,126.84,3.10644551]
[1763840775024,7.15764155,126.87,126.84,3.10644551]
[1763840778321,0.05904155,126.87,126.84,3.10644551]
[1763840778819,0.05904155,126.87,126.84,11.86053569]
[1763840779020,16.46,126.9,126.85,3.27]
[1763840779922,0.05335154,126.89,126.85,3.27]
[1763840780220,0.05335154,126.89,126.86,3.27]
[1763840780414,0.05335154,126.89,126.87,3.27]
[1763840780612,0.05335154,126.89,126.87,10.42821894]
[1763840780909,7.0954,126.93,126.88,3.27]
[1763840781114,16.48,126.94,126.89,3.27]
[1763840781815,0.05870477,126.93,126.91,3.27]
[1763840785126,7.0938,126.96,126.91,3.27]
[1763840785323,18.13419018,126.98,126.91,3.27]
[1763840786027,0.05105539,126.96,126.93,3.32207501]
[1763840787723,8.79874557,126.96,126.93,3.32207501]
[1763840789123,7.094,126.95,126.93,3.32207501]
[1763840789828,1.70524557,126.96,126.93,3.32207501]
[1763840791329,8.79874557,126.96,126.93,3.32207501]
[1763840792127,23.5744,126.95,126.93,0.05207501]
[1763840792316,25.22859018,126.95,126.93,0.05207501]
[1763840794429,0.05105539,126.96,126.93,3.32207501]
[1763840796224,7.0894,127.04,126.96,3.22]
[1763840796423,1.65419018,127.04,126.98,3.22]
[1763840797228,1.65419018,127.04,127.0,3.27687156]
[1763840797426,16.48,127.05,127.0,3.27687156]
[1763840797828,16.48,127.05,127.0,0.05687156]
[1763840798032,1.65419018,127.02,127.0,0.05687156]
[1763840799129,8.74439018,127.02,127.0,0.05687156]
[1763840800833,119.03469018,127.02,127.0,0.05687156]
[1763840801331,135.51469018,127.02,127.0,0.05687156]
[1763840802724,25.22439018,127.02,127.0,0.05687156]
[1763840804531,7.0925,126.98,126.93,3.31]
[1763840804731,8.74669018,126.98,126.93,3.31]
[1763840805536,0.05687156,126.97,126.94,3.36935126]
[1763840813644,7.14997156,126.97,126.94,0.05935126]
[1763840813842,7.14997156,126.97,126.94,3.36935126]
[1763840814243,1.65419018,126.96,126.94,3.36935126]
[1763840814936,7.14997156,126.97,126.94,3.36935126]
[1763840815739,7.0935,126.96,126.94,0.05935126]
[1763840815946,9.68019142,126.96,126.94,0.05935126]
[1763840817447,7.0935,126.96,126.94,3.36935126]
[1763840817745,7.0935,126.96,126.94,0.05935126]
[1763840818448,0.05687156,126.97,126.94,3.36935126]
[1763840820241,7.14977156,126.97,126.94,3.36935126]
[1763840830759,7.0934,126.96,126.94,3.36935126]
[1763840832754,9.68009142,126.96,126.94,0.05935126]
[1763840833063,110.3693,126.93,126.88,3.03]
[1763840833355,129.43599142,126.93,126.88,3.03]
[1763840833562,16.48,126.93,126.88,3.03]
[1763840833752,16.48,126.93,126.89,3.03]
[1763840834059,0.05681013,126.92,126.9,0.05577808]
[1763840834260,0.05681013,126.92,126.9,3.08577808]
[1763840834655,7.15251013,126.92,126.9,0.05577808]
[1763840848681,2.58669142,126.91,126.9,0.05577808]
[1763840855078,19.06669142,126.91,126.9,0.05577808]
[1763840856389,110.4065,126.89,126.83,13.02386962]
[1763840856584,16.48,126.88,126.84,3.2]
[1763840857491,0.06000927,126.87,126.85,3.25413481]
[1763840865093,7.15840927,126.87,126.85,3.25413481]
[1763840867804,1.08,126.95,126.88,3.02]
[1763840868308,1.08,126.94,126.88,3.02]
[1763840868809,0.05066103,126.92,126.9,3.07674984]
[1763840869309,1.08,126.91,126.9,0.05674984]
[1763840874411,23.62646103,126.92,126.9,3.07674984]
[1763840875918,24.70646103,126.92,126.9,3.07674984]
[1763840876919,26.36296159,126.92,126.9,3.07674984]
[1763840877118,24.70646103,126.92,126.9,3.07674984]
[1763840877314,23.62646103,126.92,126.9,3.07674984]
[1763840879717,0.05066103,126.92,126.9,3.07674984]
[1763840880015,0.05066103,126.92,126.91,3.02]
[1763840880518,0.00066103,126.92,126.91,3.02]
[1763840881812,0.00066103,126.92,126.91,12.84386962]
[1763840882318,0.00066103,126.92,126.91,3.02]
[1763840882513,0.00066103,126.92,126.91,12.84386962]
[1763840883117,1.65650056,126.98,126.92,3.02]
[1763840883316,1.65650056,126.98,126.95,3.02]
[1763840883911,7.092,126.99,126.95,3.02]
[1763840884112,0.04966704,126.98,126.97,3.02]
[1763840885924,16.48,127.01,126.97,3.02]
[1763840886222,1.65650056,127.03,126.97,3.02]
[1763840886421,2.78650056,127.03,126.97,3.02]
[1763840887020,1.13,127.02,126.99,3.20149214]
[1763840887214,8.74620056,127.03,126.99,3.20149214]
[1763840887416,9.87620056,127.03,126.99,3.20149214]
[1763840887917,1.13,127.02,126.99,3.20149214]
[1763840891321,8.74620056,127.03,126.99,3.20149214]
[1763840891620,1.65650056,127.05,126.99,4.8579927]
[1763840891826,1.65650056,127.05,127.0,3.15]
[1763840893226,17.61,127.06,127.01,3.15]
[1763840893426,19.26650056,127.06,127.03,3.15]
[1763840894421,7.0876,127.07,127.03,3.15]
[1763840896226,1.13,127.05,127.02,3.20054049]
[1763840897222,9.87450056,127.06,127.02,3.20054049]
[1763840898728,2.78650056,127.06,127.02,3.20054049]
[1763840898917,8.74330056,127.08,127.02,3.20054049]
[1763840900035,9.87330056,127.08,127.02,3.20054049]
[1763840901034,8.2174,127.07,127.02,3.20054049]
[1763840902431,1.13,127.06,127.02,3.20054049]
[1763840902738,1.13,127.05,127.02,0.05054049]
[1763840903533,1.13,127.03,127.02,0.05054049]
[1763840906238,2.78650056,127.03,127.02,0.05054049]
[1763840906438,1.65650056,127.03,127.02,0.05054049]
[1763840906633,2.78650056,127.03,127.02,0.05054049]
[1763840907536,19.26650056,127.05,127.02,3.20054049]
[1763840907835,18.13650056,127.05,127.02,3.20054049]
[1763840908035,2.78650056,127.07,127.02,3.20054049]
[1763840908938,1.13,127.06,127.02,3.20054049]
[1763840911041,8.2179,127.06,127.02,3.20054049]
[1763840911230,1.13,127.05,127.02,3.20054049]
[1763840911437,2.78650056,127.05,127.02,3.20054049]
[1763840912039,1.13,127.04,127.02,0.05054049]
[1763840913327,8.74500056,127.05,127.02,3.20054049]
[1763840913328,1.65650056,127.05,127.02,3.20054049]
[1763840913837,2.78650056,127.07,127.03,3.15]
[1763840915141,23.567,127.08,127.03,3.15]
[1763840915142,23.567,127.08,127.04,3.15]
[1763840915339,23.567,127.08,127.05,0.05058305]
[1763840915533,23.567,127.08,127.05,3.20058305]
[1763840916239,1.12,127.06,127.05,0.05058305]
[1763840918148,8.2091,127.04,127.0,3.01]
[1763840918443,9.86560056,127.04,127.0,3.01]
[1763840918939,8.74560056,127.04,127.0,3.01]
[1763840919141,0.05022276,127.03,127.02,3.05]
[1763840922044,1.13,127.02,127.01,0.05250645]
[1763840922345,2.78650056,127.02,127.01,0.05250645]
[1763840923944,1.13,127.02,127.01,0.05250645]
[1763840924341,2.78650056,127.02,127.01,0.05250645]
[1763840928144,2.78650056,127.02,126.96,9.81261728]
[1763840928145,1.07,127.0,126.96,9.81261728]
[1763840928353,1.07,126.99,126.95,3.05]
[1763840929148,0.05198447,126.98,126.96,0.05392031]
[1763840929351,1.12198447,126.98,126.96,0.05392031]
[1763840929748,0.05198447,126.98,126.96,3.10392031]
[1763840930155,1.12198447,126.98,126.96,3.10392031]
[1763840932555,1.12198447,126.98,126.96,0.05392031]
[1763840933354,0.05198447,126.98,126.96,3.10392031]
[1763840934454,0.05198447,126.98,126.97,3.05]
[1763840939162,0.05198447,126.98,126.97,12.86261728]
[1763840939364,0.05198447,126.98,126.97,3.05]
[1763840939862,0.00198447,126.98,126.97,3.05]
[1763840940062,0.00198447,126.98,126.97,12.86261728]
[1763840941074,0.00198447,126.98,126.97,3.05]
[1763840941664,0.00198447,126.98,126.97,12.86261728]
[1763840943972,0.00198447,126.98,126.97,3.05]
[1763840944169,0.00198447,126.98,126.97,12.86261728]
[1763840944672,0.00198447,126.98,126.97,3.05]
[1763840945774,0.00198447,126.98,126.97,12.86261728]
[1763840950380,0.00198447,126.98,126.97,3.05]
[1763840951171,1.12198447,126.98,126.96,3.36392031]
[1763840952173,8.21428447,126.98,126.96,3.36392031]
[1763840957885,7.09428447,126.98,126.96,3.36392031]
[1763840959289,8.21428447,126.98,126.96,3.36392031]
[1763840959785,0.00198447,126.98,126.97,3.05]
[1763840959992,0.00198447,126.98,126.97,9.81261728]
[1763840961992,0.00198447,126.98,126.96,21.86614623]
[1763840962194,0.00198447,126.98,126.97,3.05]
[1763840962997,0.00198447,126.98,126.97,9.81111414]
[1763840964387,0.00198447,126.98,126.96,21.86614623]
[1763840964586,0.00198447,126.98,126.97,9.81660061]
[1763840965095,0.00198447,126.98,126.96,21.86614623]
[1763840965295,0.00198447,126.98,126.97,3.05]
[1763840966094,0.00198447,126.98,126.97,9.81978421]
[1763840966290,0.00198447,126.98,126.96,21.86614623]
[1763840966495,0.00198447,126.98,126.97,3.05]
[1763840967395,0.00198447,126.98,126.97,9.82412822]
[1763840969397,0.00198447,126.98,126.97,12.87412822]
[1763840969796,0.00198447,126.98,126.97,9.82412822]
[1763840970391,0.00198447,126.98,126.96,21.86614623]
[1763840970989,0.00198447,126.98,126.97,3.05]
[1763840973291,0.00198447,126.98,126.97,14.71892592]
[1763840977604,0.00198447,126.98,126.96,26.21182581]
[1763840978204,7.0893,127.04,127.0,3.04]
[1763840978403,1.12,127.06,127.03,3.04]
[1763840979199,1.17029285,127.06,127.03,3.09775684]
[1763840979906,7.0884,127.05,127.03,3.09775684]
[1763840981492,8.2084,127.05,127.03,3.09775684]
[1763840981998,8.2084,127.05,127.03,0.05775684]
[1763840982200,1.12,127.04,127.03,0.05775684]
[1763840989913,8.2084,127.05,127.03,3.24775684]
[1763840992915,0.05029285,127.06,127.03,3.24775684]
[1763840993305,1.17029285,127.06,127.03,3.24775684]
[1763840994203,0.05029285,127.06,127.03,3.24775684]
[1763840994406,0.05029285,127.06,127.04,3.19]
[1763840995008,0.05029285,127.06,127.04,10.2787]
[1763840995210,0.05029285,127.06,127.05,3.19]
[1763840997907,1.12,127.1,127.06,3.19]
[1763840998324,23.5455,127.11,127.06,3.19]
[1763840998325,24.6655,127.11,127.06,3.19]
[1763840998912,26.31718775,127.11,127.08,3.19]
[1763841000219,19.23168775,127.11,127.08,3.19]
[1763841000425,16.46,127.11,127.08,3.19]
[1763841001324,1.12,127.13,127.09,3.19]
[1763841001522,1.12,127.13,127.1,3.24527884]
[1763841003226,9.85518775,127.14,127.1,3.24527884]
[1763841004018,8.73518775,127.14,127.1,3.24527884]
[1763841004320,1.65168775,127.14,127.1,3.24527884]
[1763841004516,1.12,127.13,127.1,3.24527884]
[1763841004726,1.65168775,127.14,127.1,3.24527884]
[1763841004926,16.46,127.15,127.11,3.19]
[1763841005135,2.77168775,127.16,127.11,3.19]
[1763841005337,2.77168775,127.18,127.12,7.0843]
[1763841005636,2.77168775,127.18,127.15,3.19]
[1763841006133,1.12,127.17,127.15,3.19]
[1763841007827,9.85298775,127.18,127.15,3.19]
[1763841012127,19.23168775,127.19,127.15,3.19]
[1763841012332,16.46,127.19,127.15,3.19]
[1763841013332,8.2008,127.19,127.15,3.19]
[1763841015941,8.2013,127.18,127.14,0.0522819]
[1763841016238,1.12,127.17,127.14,3.0522819]
[1763841018547,8.2018,127.17,127.14,3.0522819]
[1763841019648,1.12,127.15,127.14,0.0522819]
[1763841020751,1.12,127.13,127.09,3.0]
[1763841021247,1.12,127.15,127.09,3.0]
[1763841021750,0.06012354,127.13,127.11,0.05417297]
[1763841022046,0.06012354,127.13,127.11,3.05417297]
[1763841023247,0.06012354,127.13,127.12,3.0]
[1763841023437,19.21168775,127.18,127.13,3.0]
[1763841023639,26.29298775,127.18,127.13,10.0838]
[1763841023939,23.5213,127.18,127.14,3.0]
[1763841024147,16.44,127.18,127.14,3.0]
[1763841024347,16.44,127.18,127.15,0.06027094]
[1763841024547,2.77168775,127.19,127.16,3.0]
[1763841024750,9.85238775,127.19,127.16,3.0]
[1763841025651,8.2007,127.19,127.16,3.0]
[1763841027558,1.12,127.18,127.16,3.0]
[1763841028148,9.85238775,127.19,127.16,3.0]
[1763841028655,8.2007,127.19,127.16,3.0]
[1763841031657,1.12,127.2,127.16,3.0]
[1763841032057,1.12,127.21,127.16,3.0]
[1763841033160,1.12,127.21,127.17,3.0]
[1763841033360,1.12,127.21,127.18,3.06028467]
[1763841034557,1.65168775,127.23,127.18,3.06028467]
[1763841034758,2.77168775,127.25,127.18,3.06028467]
[1763841035064,9.84938775,127.25,127.21,3.0]
[1763841035261,8.1977,127.25,127.21,3.0]
[1763841039164,1.12,127.24,127.21,3.0]
[1763841042165,1.12,127.27,127.21,4.65168775]
[1763841042363,24.6559,127.28,127.24,3.23]
[1763841043161,9.84638775,127.3,127.24,3.23]
[1763841043363,1.12,127.29,127.26,3.28521138]
[1763841043757,8.1952,127.29,127.26,3.28521138]
[1763841043958,1.12,127.29,127.26,0.05521138]
[1763841044464,1.12,127.27,127.26,0.05521138]
[1763841045254,8.1956,127.28,127.26,3.28521138]
[1763841045868,7.0756,127.28,127.26,3.28521138]
[1763841046168,1.12,127.3,127.26,3.28521138]
[1763841046464,1.12,127.32,127.26,3.28521138]
[1763841046666,8.1941,127.31,127.26,3.28521138]
[1763841047472,2.77168775,127.29,127.26,0.05521138]
[1763841047659,1.12,127.28,127.26,0.05521138]
[1763841048474,8.1956,127.28,127.26,0.05521138]
[1763841049966,1.12,127.27,127.26,0.05521138]
[1763841051566,2.77168775,127.27,127.26,0.05521138]
[1763841054065,1.12,127.27,127.26,0.05521138]
[1763841054267,24.6356,127.28,127.26,0.05521138]
[1763841054468,1.12,127.27,127.26,0.05521138]
[1763841058679,2.77168775,127.27,127.26,0.05521138]
[1763841060282,1.12,127.25,127.21,3.23]
[1763841061274,0.05009047,127.24,127.22,0.05565102]
[1763841061467,0.05009047,127.24,127.22,3.28565102]
[1763841063278,8.24809047,127.24,127.22,0.05565102]
[1763841063477,1.12,127.23,127.22,0.05565102]
[1763841063975,8.24809047,127.24,127.22,0.05565102]
[1763841064576,0.05009047,127.24,127.22,3.28565102]
[1763841065370,1.17009047,127.24,127.22,3.28565102]
[1763841065684,1.17009047,127.24,127.22,0.05565102]
[1763841066675,1.11,127.23,127.22,0.05565102]
[1763841069378,1.11,127.2,127.17,3.06]
[1763841070177,16.44,127.22,127.17,3.06]
[1763841070374,0.05748441,127.21,127.18,3.10969593]
[1763841071081,0.05748441,127.21,127.18,10.19059593]
[1763841071282,0.05748441,127.21,127.19,3.06]
[1763841071477,8.1879,127.24,127.19,3.06]
[1763841072484,0.05801209,127.23,127.19,3.06]
[1763841073079,0.05801209,127.23,127.19,10.1404]
[1763841073286,0.05801209,127.23,127.2,3.06]
[1763841075084,0.05801209,127.23,127.2,10.1399]
[1763841075485,0.05801209,127.23,127.21,3.06]
[1763841075688,0.05801209,127.23,127.21,3.11296897]
[1763841075889,1.16801209,127.23,127.21,0.05296897]
[1763841076477,1.11,127.22,127.21,0.05296897]
[1763841080397,1.11,127.2,127.16,12.88098596]
[1763841080594,1.11,127.2,127.17,3.06]
[1763841081293,1.16386495,127.2,127.17,3.12030689]
[1763841081594,1.16386495,127.2,127.17,12.94129285]
[1763841081595,8.24396495,127.2,127.17,12.94129285]
[1763841082086,8.24396495,127.2,127.17,3.12030689]
[1763841086391,1.16386495,127.2,127.17,3.12030689]
[1763841087802,0.05386495,127.2,127.17,3.12030689]
[1763841088096,0.05386495,127.2,127.19,12.88098596]
[1763841091100,7.0772,127.25,127.21,3.06]
[1763841091490,8.1872,127.25,127.21,3.06]
[1763841091900,1.11,127.24,127.21,3.06]
[1763841092204,1.162923,127.24,127.21,3.10993981]
[1763841094405,1.11,127.23,127.21,0.04993981]
[1763841096105,8.1884,127.23,127.21,0.04993981]
[1763841096908,1.11,127.23,127.21,0.04993981]
[1763841101495,7.130723,127.24,127.21,3.20993981]
[1763841102000,8.240723,127.24,127.21,3.20993981]
[1763841102307,1.162923,127.24,127.22,3.16]
[1763841103799,8.240723,127.24,127.21,13.03092577]
[1763841104000,1.11,127.23,127.21,9.87092577]
[1763841104196,1.11,127.23,127.21,0.04993981]
[1763841106109,1.11,127.23,127.21,9.87092577]
[1763841106302,1.11,127.23,127.21,13.03092577]
[1763841107315,0.052923,127.24,127.22,3.16]
[1763841109413,0.052923,127.24,127.21,9.87092577]
[1763841109414,1.162923,127.24,127.21,9.87092577]
[1763841109807,8.240723,127.24,127.21,13.03092577]
[1763841110013,1.11,127.23,127.21,13.03092577]
[1763841112612,0.052923,127.24,127.22,3.16]
[1763841114022,0.052923,127.24,127.23,3.16]
[1763841118814,0.052923,127.24,127.23,12.98098596]
[1763841119018,0.052923,127.24,127.23,3.16]
[1763841119215,0.052923,127.24,127.23,12.95443917]
[1763841120322,0.052923,127.24,127.23,3.16]
[1763841122128,0.052923,127.24,127.23,12.94759726]
[1763841122723,1.11,127.28,127.25,3.16]
[1763841123433,8.1857,127.28,127.25,3.16]
[1763841123728,8.1857,127.28,127.25,3.2138385]
[1763841124025,1.11,127.27,127.25,0.0538385]
[1763841124226,1.11,127.27,127.25,3.2138385]
[1763841125325,1.64686634,127.28,127.25,3.2138385]
[1763841125527,2.75686634,127.28,127.25,3.2138385]
[1763841125833,7.0754,127.29,127.25,3.2138385]
[1763841126336,8.1854,127.29,127.25,3.2138385]
[1763841127326,1.11,127.29,127.26,3.2]
[1763841130529,25.16136634,127.3,127.26,3.2]
[1763841130831,7.0745,127.3,127.27,3.2]
[1763841131032,1.11,127.32,127.27,3.2]
[1763841131224,1.11,127.32,127.28,3.25742563]
[1763841132139,7.0734,127.32,127.28,3.25742563]
[1763841132632,8.1834,127.32,127.28,3.25742563]
[1763841133538,2.75686634,127.33,127.29,3.2]
[1763841134932,2.75686634,127.33,127.3,3.2]
[1763841135128,7.0727,127.34,127.3,3.2]
[1763841135436,8.1827,127.34,127.31,3.25902005]
[1763841135642,18.08686634,127.35,127.31,3.25902005]
[1763841135826,19.19686634,127.35,127.31,3.25902005]
[1763841136030,17.55,127.35,127.31,3.25902005]
[1763841139239,8.1803,127.38,127.32,3.2]
[1763841139539,1.11,127.37,127.34,3.25277775]
[1763841139741,1.11,127.35,127.34,0.05277775]
[1763841140334,9.82806634,127.36,127.34,0.05277775]
[1763841144154,9.82736634,127.38,127.34,3.25277775]
[1763841144359,1.11,127.37,127.34,3.25277775]
[1763841145554,17.53,127.4,127.35,3.2]
[1763841145859,1.11,127.39,127.35,3.2]
[1763841146360,1.11,127.38,127.35,3.2]
[1763841147658,1.11,127.36,127.34,0.05277775]
[1763841147858,2.75686634,127.35,127.34,0.05277775]
[1763841148960,2.75686634,127.37,127.34,3.25277775]
[1763841149562,1.11,127.37,127.34,3.25277775]
[1763841151854,1.11,127.36,127.34,3.25277775]
[1763841152161,1.11,127.36,127.34,0.05277775]
[1763841152354,8.1812,127.36,127.34,0.05277775]
[1763841154650,8.1812,127.36,127.34,3.25277775]
[1763841154854,7.0712,127.36,127.34,3.25277775]
[1763841155055,1.11,127.37,127.34,3.25277775]
[1763841157263,8.1807,127.37,127.34,3.25277775]
[1763841157765,1.11,127.36,127.34,3.25277775]
[1763841158761,1.11,127.35,127.34,0.05277775]
[1763841159067,1.11,127.35,127.31,3.25]
[1763841159958,0.0550817,127.34,127.32,3.30668903]
[1763841164870,0.0550817,127.34,127.32,10.37998903]
[1763841165055,2.75686634,127.39,127.33,3.25]
[1763841166066,1.11,127.38,127.35,3.30573862]
[1763841171672,8.18,127.38,127.35,3.30573862]
[1763841174777,1.11,127.37,127.35,3.30573862]
[1763841175072,8.18,127.38,127.35,3.30573862]
[1763841177371,2.75686634,127.41,127.36,3.25]
[1763841177571,1.11,127.4,127.37,3.25]
[1763841177778,2.75686634,127.41,127.37,3.30405897]
[1763841178283,7.0689,127.4,127.37,3.30405897]
[1763841179081,8.1789,127.4,127.37,3.30405897]
[1763841180775,1.64686634,127.41,127.37,3.30405897]
[1763841180981,2.75686634,127.41,127.38,3.25]
[1763841181783,9.82526634,127.41,127.38,3.25]
[1763841182783,8.1784,127.41,127.38,3.25]
[1763841183585,1.11,127.4,127.38,3.25]
[1763841184287,7.0684,127.41,127.38,3.25]
[1763841184689,8.1784,127.41,127.38,3.25]
[1763841186886,17.53,127.42,127.38,3.25]
[1763841187092,1.11,127.42,127.39,3.29]
[1763841187690,8.1778,127.42,127.39,3.29]
[1763841188091,1.11,127.41,127.37,13.13145305]
[1763841188387,109.925,127.45,127.39,3.29]
[1763841188388,8.1783,127.42,127.39,3.29]
[1763841188691,1.11,127.41,127.39,0.05865508]
[1763841188888,8.1783,127.41,127.39,0.05865508]
[1763841189092,1.11,127.42,127.39,3.34865508]
[1763841189684,8.1778,127.42,127.39,3.34865508]
[1763841191091,7.0672,127.44,127.41,3.29]
[1763841191289,7.0672,127.44,127.41,3.34758306]
[1763841191483,1.11,127.46,127.41,3.34758306]
[1763841191688,8.176,127.46,127.41,3.34758306]
[1763841191887,1.11,127.45,127.41,3.34758306]
[1763841192690,8.176,127.46,127.42,3.29]
[1763841196397,1.11,127.46,127.42,10.3577]
[1763841196699,23.4849,127.48,127.42,10.3577]
[1763841196700,24.5949,127.48,127.43,3.29]
[1763841196899,1.11,127.47,127.45,3.29]
[1763841197795,23.4849,127.48,127.45,3.29]
[1763841197796,17.53,127.48,127.45,3.29]
[1763841198290,1.11,127.49,127.45,3.29]
[1763841198597,1.11,127.5,127.45,3.29]
[1763841198999,1.11,127.5,127.46,3.29]
[1763841199197,1.11,127.5,127.48,3.29]
[1763841199495,1.11,127.5,127.47,3.3443521]
[1763841199705,1.11,127.5,127.47,0.0543521]
[1763841200392,1.11,127.49,127.47,0.0543521]
[1763841202206,8.1736,127.5,127.47,3.3443521]
[1763841202704,18.98827432,127.52,127.47,3.3443521]
[1763841202705,1.11,127.51,127.47,3.3443521]
[1763841203903,1.11,127.5,127.47,0.0543521]
[1763841205699,1.11,127.49,127.47,0.0543521]
[1763841207502,1.11,127.48,127.47,0.0543521]
[1763841208102,7.064,127.49,127.47,0.0543521]
[1763841208302,8.174,127.49,127.47,3.3443521]
[1763841208600,1.11,127.49,127.47,3.3443521]
[1763841209411,1.11,127.49,127.47,0.0543521]